Cogmind - Beta 10.2 @@@ ROGUE MODE // 2021.06.06 @ 14:51:10 Player: Timo Result: Destroyed by Y-45 Defender with Beam Rifle Performance ------------- Evolutions (1) 500 Regions Visited (4) 800 Robots Destroyed (59) 295 Value Destroyed (1549) 1549 Prototype IDs (0) 0 Alien Tech Used (0) 0 Bonus (119) 119 TOTAL SCORE: 3263 Bonus ------- High Alert Combat Kills 44 Follower Combat Kills 75 Cogmind --------- Core Integrity 0/400 Matter 284/300 Energy 168/250 System Corruption 0% Temperature Cool (6) Movement Walking (150) Ox1 Location -9/Storage Parts ------- > --- POWER (1) -------- Ion Engine > --- PROPULSION (3) --- Aluminum Leg Improved Aluminum Leg > --- UTILITY (3) ------ High-capacity Storage Unit Visual Processing Unit Shield Generator > --- WEAPON (2) ------- Heavy Assault Rifle > --- INVENTORY (12) --- Light Treads Improved Hover Unit Improved Flight Unit Heat Sink Small Storage Unit Large Matter Pod (150) Sensor Array Transport Network Coupler Experimental Targeting Computer Improved Light Cannon Mini Grenade Launcher Peak State ------------ > --- POWER ------------ Light Nuclear Core > --- PROPULSION ------- Improved Hover Unit Improved Hover Unit Improved Hover Unit > --- UTILITY ---------- Small Storage Unit High-capacity Storage Unit Visual Processing Unit > --- WEAPON ----------- Shotgun Mini Grenade Launcher > --- INVENTORY -------- Ion Engine Light Ion Engine Light Treads Light Treads Aluminum Leg Aluminum Leg Heat Sink Large Matter Pod Weight Redist. System Structural Scanner Transport Network Coupler Light Assault Rifle Light Cannon Mini Grenade Launcher [Rating: 18] Favorites ----------- Power Ion Engine Engine Ion Engine Power Core Light Nuclear Core Propulsion Aluminum Leg Treads Light Treads Leg Aluminum Leg Hover Unit Improved Hover Unit Utility High-capacity Storage Unit Device Shield Generator Storage High-capacity Storage Unit Processor Visual Processing Unit Protection Power Shielding Weapon Shotgun Energy Gun EM Pulse Gun Energy Cannon Beam Cannon Ballistic Gun Shotgun Ballistic Cannon Light Cannon Launcher Mini Grenade Launcher Special Weapon Mining Laser Build | -11 -10 -10 -9 -9 ------- Run | Scr Mat Min Mat Sto Slots Evolved 2 | . . . 2 . Power . | . . . . . Propulsion 1 | . . . 1 . Utility 1 | . . . 1 . Weapon . | . . . . . Parts Attached 47 | . 7 6 17 17 Power 5 | . . 2 2 1 Engine 4 | . . 2 1 1 Core 1 | . . . 1 . Reactor . | . . . . . Propulsion 19 | . 2 3 7 7 Treads 4 | . . . 4 . Leg 10 | . 2 1 3 4 Wheel . | . . . . . Hover 5 | . . 2 . 3 Flight . | . . . . . Utility 10 | . 3 . 5 2 Device 1 | . . . . 1 Storage 4 | . 2 . 2 . Processor 1 | . . . 1 . Hackware . | . . . . . Protection 4 | . 1 . 2 1 Artifact . | . . . . . Weapon 13 | . 2 1 3 7 Energy Gun 2 | . . . 1 1 Energy Cannon 1 | . . . . 1 Ballistic Gun 5 | . 1 . 2 2 Ballistic Cannon 2 | . 1 . . 1 Launcher 2 | . . . . 2 Special Weapon 1 | . . 1 . . Impact Weapon . | . . . . . Slashing Weapon . | . . . . . Piercing Weapon . | . . . . . Special Melee Weapon . | . . . . . Unidentified Prototypes . | . . . . . Parts Lost 23 | . 2 7 6 8 Power 2 | . . 1 . 1 Propulsion 9 | . 1 3 3 2 Utility 3 | . . . 2 1 Weapon 9 | . 1 3 1 4 Highest Loss Streak 6 | . 1 6 2 2 Average Slot Usage (%) 91 | . 94 91 80 95 Engine 7 | . 14 13 3 5 Core 2 | . . . 4 4 Treads 4 | . . . 15 1 Leg 20 | . 26 24 9 22 Hover 4 | . . 1 5 7 Storage 15 | . 14 13 14 16 Processor 5 | . . . 1 11 Protection 7 | . 10 13 7 3 Energy Gun 3 | . 12 . 2 . Ballistic Gun 11 | . 7 12 16 10 Ballistic Cannon 5 | . 7 11 . 5 Naked Turns . | . . . . . Heaviest Build 50 | 10 41 40 50 47 Greatest Support 40 | 20 20 25 40 33 Greatest Overweight (x) 14 | . 2 3 2 14 Average Overweight (x) . | . . . . 1 Largest Inventory Capacity 14 | . 12 12 14 14 Average Capacity 11 | . 7 11 11 13 Most Carried 14 | . 8 10 13 14 Average Carried 9 | . 5 8 7 12 Final Capacity 14 | 6 12 4 14 12 Final Carried 12 | 6 8 4 12 11 Class Distribution -------------------- 53% | Scavenger-Mutant 46% | Mutant Dominant Class ---------------- Mutant | -10/Materials Mutant | -10/Mines Scavenger-Mutant | -9/Materials Scavenger-Mutant | -9/Storage Resources | -11 -10 -10 -9 -9 ----------- Run | Scr Mat Min Mat Sto Matter Collected 1773 | 175 300 158 601 539 Remotely . | . . . . . Salvage Created 2000 | . 320 173 752 755 Parts 120 | . 22 8 39 51 Haulers Intercepted 4 | . 1 . 2 1 Recyclers Shooed 4 | . . . 2 2 Parts Field Recycled . | . . . . . Retrieved Matter . | . . . . . Parts Self-Destructed . | . . . . . Prevented . | . . . . . Kills | -11 -10 -10 -9 -9 ------- Run | Scr Mat Min Mat Sto Combat Hostiles Destroyed 45 | . 9 4 14 18 Guns 29 | . 4 2 14 9 Cannons 13 | . 5 2 . 6 AOE 3 | . . . . 3 Classes Destroyed 9 | . 3 2 3 1 Worker 5 | . . . 1 4 Hauler 4 | . 1 . 2 1 Recycler 4 | . . 1 2 1 Watcher 1 | . . . 1 . Swarmer 10 | . 3 . 4 3 Grunt 21 | . 6 2 7 6 Brawler 1 | . . . . 1 Duelist 1 | . . . 1 . Sentry 12 | . . 2 2 8 Best Kill Streak 6 | . 3 3 6 4 Combat Bots Only 4 | . 3 2 4 4 Max Kills in Single Turn 2 | . 1 1 1 2 Gunslinging . | . . . . . Exploded 1 | . . . . 1 Melee . | . . . . . Uniques/NPCs Destroyed . | . . . . . Combat | -11 -10 -10 -9 -9 -------- Run | Scr Mat Min Mat Sto Damage Taken 3376 | . 393 744 1092 1147 Core 649 | . 23 220 203 203 Absorbed by Shields 21 | . . . . 21 Core Remaining (%) 51 | 100 . 2 . . Volleys Fired 169 | . 30 23 48 68 Largest 2 | . 2 2 2 2 Hottest 100 | . 75 100 79 63 Shots Fired 304 | . 59 39 93 113 Gun 213 | . 38 21 93 61 Cannon 81 | . 21 16 . 44 Launcher 8 | . . . . 8 Special 2 | . . 2 . . Kinetic 232 | . 30 37 80 85 Thermal 35 | . . 2 13 20 Explosive 8 | . . . . 8 Electromagnetic 29 | . 29 . . . Robot Hit Streak 16 | . 11 8 16 11 Robot Miss Streak 9 | . 2 2 3 9 Penetration Max . | . . . . . Secondary Targets 5 | . . . 4 1 Max Gunslinging Chain 1 | . . . 1 1 Shots Hit Robots 223 | . 39 28 75 81 Core Hits 109 | . 15 13 38 43 Critical Hits 4 | . . . . 4 Critical Kills 3 | . . . . 3 Critical Parts Destroyed 1 | . . . . 1 Melee Attacks . | . . . . . Impact . | . . . . . Slashing . | . . . . . Piercing . | . . . . . Sneak Attacks . | . . . . . Combat Hostiles . | . . . . . Follow-up Attacks . | . . . . . Damage Inflicted 3452 | . 514 403 1072 1463 Guns 2213 | . 295 149 1072 697 Cannons 853 | . 219 196 . 438 Explosions 324 | . . . . 324 Melee . | . . . . . Ramming 14 | . . 10 . 4 Kinetic 2426 | . 242 345 930 909 Thermal 416 | . . 48 142 226 Explosive 324 | . . . . 324 Electromagnetic 272 | . 272 . . . Impact . | . . . . . Slashing . | . . . . . Piercing . | . . . . . Highest Corruption . | . . . . . Average Corruption . | . . . . . Corruption Purged . | . . . . . Overload Shots . | . . . . . Overflow Damage 4 | . . . . 4 Projectiles 4 | . . . . 4 Explosions . | . . . . . Melee . | . . . . . Knockbacks 7 | . 3 1 . 3 Impact . | . . . . . Kinetic 7 | . 3 1 . 3 Secondary . | . . . . . Self-Inflicted Damage 84 | . . 4 . 80 Shots 2 | . . . . 2 Rammed 4 | . . 2 1 1 Targets Rammed 4 | . . 2 1 1 Kicked . | . . . . . Crushed . | . . . . . Highest Temperature 244 | . 244 90 108 158 Average Temperature 46 | . 72 38 42 27 Received Heat Transfer 1146 | . 183 231 375 357 Siege Activations . | . . . . . Robots Corrupted . | . . . . . Combat Hostiles . | . . . . . Parts Fried . | . . . . . Impact Corruptions . | . . . . . Robots Melted . | . . . . . Combat Hostiles . | . . . . . Parts Melted 2 | . . . . 2 Heat Transferred 939 | . . 100 370 469 Parts Sabotaged . | . . . . . Parts Stolen . | . . . . . Parts Stripped . | . . . . . Power Chain Reactions . | . . . . . Missiles Intercepted . | . . . . . Alert | -11 -10 -10 -9 -9 ------- Run | Scr Mat Min Mat Sto Peak Influence 567 | . 155 109 313 567 Initial 81 | . . 27 34 81 Average 183 | . 65 77 156 281 Maximum Alert Level 2 | . . . 1 2 Low Security (%) 60 | . 100 100 77 23 Level 1 32 | . . . 22 60 Level 2 7 | . . . . 16 Level 3 . | . . . . . Level 4 . | . . . . . Level 5 . | . . . . . High Security . | . . . . . Max Security . | . . . . . Squads Dispatched 12 | . 1 1 2 8 Investigation 4 | . . . . 4 Extermination . | . . . . . Reinforcement 5 | . 1 . 2 2 Assault 1 | . . 1 . . Garrison 2 | . . . . 2 Intercept . | . . . . . Construction Impeded . | . . . . . Haulers Reinforced . | . . . . . Stealth | -11 -10 -10 -9 -9 --------- Run | Scr Mat Min Mat Sto Distress Signals 5 | . 1 . 1 3 Communications Jammed . | . . . . . Distress Signals . | . . . . . Times Spotted 71 | . 15 9 17 30 Peak Tracking Total 5 | . 4 3 5 4 Tactical Retreats 1 | . . . . 1 Traps | -11 -10 -10 -9 -9 ------- Run | Scr Mat Min Mat Sto Traps Triggered 2 | . . . . 2 Indirectly . | . . . . . Trap Hack Attempts . | . . . . . Triggered . | . . . . . Disarmed . | . . . . . Reprogrammed . | . . . . . Reused . | . . . . . Traps Extracted . | . . . . . Installed . | . . . . . Triggered . | . . . . . Machines | -11 -10 -10 -9 -9 ---------- Run | Scr Mat Min Mat Sto Machines Disabled 2 | . . . . 2 Max in Single Turn 1 | . . . . 1 Machines Sabotaged . | . . . . . Garrisons Compromised . | . . . . . Overloaded Fab Kills . | . . . . . Fab Network Shutdowns . | . . . . . Hacking | -11 -10 -10 -9 -9 --------- Run | Scr Mat Min Mat Sto Machines Accessed 9 | . 3 . . 6 Terminals 6 | . 2 . . 4 Fabricators . | . . . . . Repair Stations 1 | . . . . 1 Recycling Units 1 | . 1 . . . Scanalyzers . | . . . . . Garrison Access 1 | . . . . 1 Total Hacks 19 | . 5 . . 14 Successful 12 | . 4 . . 8 Failed 7 | . 1 . . 6 Catastrophic 2 | . . . . 2 Database Lockouts . | . . . . . Manual 5 | . 1 . . 4 Terminals 11 | . 4 . . 7 Fabricators . | . . . . . Repair Stations 2 | . . . . 2 Recycling Units 1 | . 1 . . . Scanalyzers . | . . . . . Garrison Access 5 | . . . . 5 Terminal Hacks 4 | . 2 . . 2 Open Door 2 | . . . . 2 Branch Access Points 1 | . 1 . . . Alert Level 1 | . 1 . . . Fabricator Hacks . | . . . . . Repair Station Hacks 2 | . . . . 2 Scan Component 1 | . . . . 1 Repair 1 | . . . . 1 Recycling Unit Hacks 1 | . 1 . . . Report Inventory 1 | . 1 . . . Scanalyzer . | . . . . . Garrison Access Hacks 2 | . . . . 2 Coupler Status 2 | . . . . 2 Unauthorized Hacks 3 | . 1 . . 2 Terminals 1 | . 1 . . . Assimilate 1 | . 1 . . . Fabricators . | . . . . . Repair Stations . | . . . . . Recycling Units . | . . . . . Scanalyzers . | . . . . . Garrison Access 2 | . . . . 2 Broadcast 1 | . . . . 1 Reprogram 1 | . . . . 1 Data Cores Recovered . | . . . . . Used . | . . . . . Hacking Detections 6 | . . . . 6 Full Trace Events 3 | . . . . 3 Feedback Events . | . . . . . Feedback Blocked . | . . . . . Robot Schematics Acquired . | . . . . . Robots Built . | . . . . . Matter . | . . . . . Time . | . . . . . Total Robot Build Rating . | . . . . . Part Schematics Acquired . | . . . . . Parts Built . | . . . . . Matter . | . . . . . Time . | . . . . . Total Part Build Rating . | . . . . . Parts Repaired 1 | . . . . 1 Time 32 | . . . . 32 Parts Recycled . | . . . . . Recycled Matter . | . . . . . Retrieved Matter . | . . . . . Retrieved Components . | . . . . . Parts Scanalyzed . | . . . . . Part Schematics Acquired . | . . . . . Parts Damaged . | . . . . . Bothacking | -11 -10 -10 -9 -9 ------------ Run | Scr Mat Min Mat Sto Used RIF Installer . | . . . . . Robots Hacked . | . . . . . Non-combat . | . . . . . Combat . | . . . . . Robot Hacks Applied . | . . . . . Relay Couplers Released . | . . . . . Robots Rewired . | . . . . . Allies Hacked . | . . . . . Hacks Repelled . | . . . . . Allies | -11 -10 -10 -9 -9 -------- Run | Scr Mat Min Mat Sto Total Allies 4 | . . 1 . 3 Largest Group 3 | . . 1 . 3 Highest-Rated Group 31 | . . 31 . 24 Highest-Rated Ally 31 | . . 31 . 8 Total Orders . | . . . . . Ally Attacks 38 | . . 6 . 32 Total Damage 380 | . . 130 . 250 Kills 7 | . . 2 . 5 Allies Corrupted . | . . . . . Allies Melted . | . . . . . Intel | -11 -10 -10 -9 -9 ------- Run | Scr Mat Min Mat Sto Robot Analysis Total . | . . . . . Derelict Logs Recovered . | . . . . . Drone Launches . | . . . . . Drone Recoveries . | . . . . . Exploration | -11 -10 -10 -9 -9 ------------- Run | Scr Mat Min Mat Sto Turns Passed 2541 | . 653 181 572 1135 Spaces Moved 1298 | 1 387 73 279 558 Core 57 | . . 17 39 1 Treads 149 | . . . 149 . Legs 836 | 1 387 56 1 391 Wheels . | . . . . . Hover 256 | . . . 90 166 Flight . | . . . . . Fastest Speed 50 | 120 120 50 50 112 Average Speed 141 | 120 129 127 132 157 Slowest Speed 750 | 120 180 210 200 750 Overloaded Moves . | . . . . . Propulsion Burnouts . | . . . . . Robots Hopped . | . . . . . Cave-ins Triggered . | . . . . . Exploration Rate (%) 33 | 2 64 27 11 65 Regions Visited 4 Branch Regions 2 Pre-discovered Areas . | . . . . . Known Exits Taken 1 | . 1 . . . Unknown Exits Taken 3 | 1 . 1 1 . Scrap Searched . | . . . . . Spaces Dug . | . . . . . Terrain Destroyed 50 | . . . . 50 Melee . | . . . . . Projectile . | . . . . . AOE 50 | . . . . 50 Terrain Rammed . | . . . . . Walls Destroyed . | . . . . . Machines Disabled . | . . . . . Actions | -11 -10 -10 -9 -9 --------- Run | Scr Mat Min Mat Sto Total 1695 | . 484 122 384 705 Wait 109 | . 41 13 23 32 Move 1294 | . 386 72 278 558 Hop . | . . . . . Pick Up 35 | . 10 1 14 10 Fast Attach 24 | . 5 2 9 8 Attach 15 | . . 4 5 6 Detach 3 | . . 1 . 2 Swap 8 | . 2 . 3 3 Drop 29 | . 10 4 3 12 Fire 169 | . 30 23 48 68 Melee . | . . . . . Ram 2 | . . 1 1 . Kick 2 | . . 1 . 1 Crush . | . . . . . Escape Stasis 5 | . . . . 5 Rewire . | . . . . . Trap . | . . . . . Miscellaneous . | . . . . . Route ------- -11/Scrapyard -10/Materials (discovered 4 exits: [*Mat x2] / *Min x2) -10/Mines -9/Materials -9/Storage History --------- Turn | Location | Event 1 | -11/Scrapyard | Discovered new exit (range 0) 1 | -11/Scrapyard | Entered Materials 13 | -10/Materials | Discovered new exit (range 16) 205 | -10/Materials | Discovered new exit (range 7) 304 | -10/Materials | Discovered new exit (range 8) 305 | -10/Materials | Build established: Mutant 584 | -10/Materials | Identified exit to Mines 654 | -10/Materials | Entered Mines 655 | -10/Mines | Met a Derelict testing a Signal Generator 809 | -10/Mines | Core integrity fell below 50% 826 | -10/Mines | Core integrity fell below 20% 833 | -10/Mines | Discovered new exit (range 5) 835 | -10/Mines | Entered Materials 835 | -9/Materials | Evolved 2 slots: Propulsion x1, Utility x1 835 | -9/Materials | Discovered new exit (range 7) 854 | -9/Materials | Lost 6 parts (1p2n3w) 1261 | -9/Materials | Build established: Scavenger-Mutant 1360 | -9/Materials | Core integrity fell below 50% 1407 | -9/Materials | Entered Storage 1457 | -9/Storage | Repaired Shotgun 1973 | -9/Storage | Core integrity fell below 20% 2166 | -9/Storage | Found Prototype Processor 2357 | -9/Storage | Garrison activated, responded to threat 2542 | -9/Storage | Destroyed by Y-45 Defender with Beam Rifle Last Messages --------------- 02397_ Triggered Alarm Trap. 02397_ An alarm sounds. 02397_ ALERT: Alarm triggered, dispatching investigation squad. 02397_ >> BROADCAST: Garrison Access S001 dispatching Investigation squad: 2x G-34 Mercenary. 02404_ Lgt. Armor Plating destroyed. 02404_ Lgt. Cannon destroyed. 02404_ Y-45 Defender suffers critical hit. 02404_ Y-45 Defender destroyed. 02438_ Acquired Imp. Light Cannon. 02445_ U-05 Engineer lays Concrete. 02457_ >> BROADCAST: Garrison Access S001 dispatching Garrison squad: 2x Y-45 Defender. 02462_ G-34 Mercenary destroyed. 02490_ Destroyed Sml. Laser. 02506_ Acquired Shield Generator. 02512_ Dropped Weight Redist. System. 02514_ Acquired Sensor Array. 02536_ Beam Cannon destroyed. 02539_ Aluminum Leg destroyed. Map ----- +----------------------------------------------------+ | ???????????????????????????????? | | ???????????????????????????????? | | ???????????????????????????????? | | ???????????????????????????????? | | ???????????????????????????????? | | ???????????????????????????????? | | ???????????????????????????????? | | ???????????????????????????????? | | ???????????????????????????????? | | ???????????????????????????????? | | ???????????????????????????????? | | ???????????????????????????????? | | ???????????????????????????????? | | ??????????????#????????????????? | | ??????????????# ???????????????? | | ??????????????# ??????????????? | | ??????????????? ?????????????? | | ???????????????? #????????????? | | ????????????????? ???????????? | | ?????????????????? ????###???? | | ??????????????????? ##### ##??? | | ???????????????????? + #??? | | ?????????????????????#g """#??? | | ?????????????????????# """#??? | | ##########???????????+ Y"""#??? | | # #???????????# @ #??? | | # """ #???????????# #??? | | # """ #???????????####+###??? | | # """ #??????????????# ###### | | # #???????????#??# # # | | """"" #?????????? #??# # # | | # """"" #????????? #### # # | | # """"" #?????"""" + # # | | # #?????? ?# # ! # | | #####+###########+#### # ! # | | =[%!%= +| # | | %=*=== #####+###### | | !%* ! # #???? | | ################ # #???? | | %[=*%#?????????# # #???? | | """!##?????????# + #???? | | """ #??????????# # #???? | | """ ""?????????# # #???? | | T"#????????+ ########???? | | ""#????????######??????????? | | ###????????????????????????? | | #??????????????????????????? | | #####??????????????????????????? | | ???????????????????????????????? | | | +----------------------------------------------------+ Best States ------------- Heat Dissipation 28 Energy Generation 14 Energy Capacity 250 Matter Stores 300 Matter Capacity 300 Sight Range 18 Terrain Scan Density 10 Armor Coverage 375 Power Shielding 33 Evasion (%) 53 Recoil Reduction 2 Item Schematics ----------------- None Robot Schematics ------------------ None Fabricated ------------ Nothing Alien Tech Used ----------------- None Achievements -------------- Let's See Who's Tougher Challenges ------------ None Game ------ Seed SuspensionBlastLog Manual? 0 Play Time 00:34:55 Cumulative 45.0 hours Start 2021.06.06 @ 14:12:56 End 2021.06.06 @ 14:51:10 Sessions 1 Manual Loads 0 Difficulty Rogue Special Mode None Game No. 41 Rogue 41 Adventurer 0 Explorer 0 Win Type - Total 0 Types 0/0/0/0/0/0/0/0/0 Lore% 30 Gallery% 39 Achievement% 27 Wizard Run 0 Options --------- ASCII 0 Keyboard 1 Movement Numpad Keybinds 0 Fullscreen 1 Font 18/SmallcapsGlow Map View 76x50 Tactical HUD 1 Map Filters NONE Filters NONE Steam 1 RUN: 07c08931-0b41-4490-bae7-eb4c0abbb55e